fUSD/lending_fUSD_20241225
["ID","MTS","AMOUNT","RATE_DAILY","PERIOD"]
[346642027,1735146645884,-500.0,0.00011271,2]
[346642028,1735146645895,-500.0,0.00011271,2]
[346642029,1735146645905,-500.0,0.00011271,2]
[346642030,1735146645915,-657.45,0.00011271,2]
[346642031,1735146645925,-500.0,0.00011271,2]
[346642032,1735146645936,-1250.06,0.00011271,2]
[346642033,1735146645946,-500.0,0.00011271,2]
[346642034,1735146645956,-321.21410804,0.00011271,2]
[346642035,1735146645967,-1672.81,0.00011271,2]
[346642036,1735146645977,-4830.95,0.00011271,2]
[346642037,1735146645987,-500.0,0.00011271,2]
[346642038,1735146645997,-500.0,0.00011271,2]
[346642039,1735146646007,-500.0,0.00011271,2]
[346642040,1735146646021,-500.0,0.00011271,2]
[346642041,1735146646031,-500.0,0.00011271,2]
[346642042,1735146646042,-500.0,0.00011271,2]
[346642043,1735146646052,-500.0,0.00011271,2]
[346642044,1735146646063,-500.0,0.00011271,2]
[346642045,1735146646074,-500.0,0.00011271,2]
[346642046,1735146646084,-689.02,0.00011271,2]
[346642047,1735146646095,-500.0,0.00011271,2]
[346642048,1735146646106,-500.0,0.00011271,2]
[346642049,1735146646116,-731.62,0.00011271,2]
[346642050,1735146646126,-711.5,0.00011271,2]
[346642051,1735146646137,-500.0,0.00011271,2]
[346642052,1735146646147,-500.0,0.00011271,2]
[346642053,1735146646157,-551.75,0.00011271,2]
[346642054,1735146646167,-500.0,0.00011271,2]
[346642055,1735146646179,-500.0,0.00011271,2]
[346642056,1735146646189,-2251.05,0.00011271,2]
[346642057,1735146646199,-500.0,0.00011271,2]
[346642058,1735146646209,-3016.77,0.00011271,2]
[346642059,1735146646220,-500.0,0.00011271,2]
[346642060,1735146646231,-500.0,0.00011271,2]
[346642061,1735146646241,-500.0,0.00011271,2]
[346642062,1735146646251,-500.0,0.00011271,2]
[346642063,1735146646261,-500.0,0.00011271,2]
[346642064,1735146646271,-1028.51,0.00011271,2]
[346642065,1735146646281,-1592.71,0.00011271,2]
[346642066,1735146646291,-500.0,0.00011271,2]
[346642067,1735146646301,-950.98,0.00011271,2]
[346642068,1735146646311,-500.0,0.00011271,2]
[346642069,1735146646321,-500.0,0.00011271,2]
[346642070,1735146646332,-500.0,0.00011271,2]
[346642071,1735146646342,-500.0,0.00011271,2]
[346642072,1735146646352,-500.0,0.00011271,2]
[346642073,1735146646362,-500.0,0.00011271,2]
[346642074,1735146646372,-500.0,0.00011271,2]
[346642075,1735146646382,-679.36,0.00011271,2]
[346642076,1735146646392,-500.0,0.00011271,2]
[346642077,1735146646402,-500.0,0.00011271,2]
[346642078,1735146646412,-509.42,0.00011271,2]
[346642079,1735146646422,-500.0,0.00011271,2]
[346642080,1735146646432,-938.94,0.00011271,2]
[346642081,1735146646442,-500.0,0.00011271,2]
[346642082,1735146646452,-500.0,0.00011271,2]
[346642083,1735146646461,-500.0,0.00011271,2]
[346642084,1735146646471,-500.0,0.00011271,2]
[346642085,1735146646481,-500.0,0.00011271,2]
[346642086,1735146646491,-845.44,0.00011282,2]
[346642087,1735146646500,-767.17,0.000114,2]
[346642088,1735146646510,-434.937,0.000114,2]
[346642089,1735146646520,-500.0,0.00011545,2]
[346642090,1735146646530,-500.0,0.00011545,2]
[346642091,1735146646540,-500.0,0.00011545,2]
[346642092,1735146646550,-500.0,0.00011545,2]
[346642093,1735146646560,-500.0,0.00011545,2]
[346642094,1735146646571,-500.0,0.00011545,2]
[346642095,1735146646580,-500.0,0.00011545,2]
[346642096,1735146646590,-272.01084556,0.00011545,2]
[346642097,1735146646601,-500.0,0.00011545,2]
[346642098,1735146646611,-956.92,0.00011545,2]
[346642099,1735146646621,-500.0,0.00011545,2]
[346642100,1735146646632,-256.87542387,0.00011545,2]
[346642101,1735146646945,-1776.69,0.00011545,2]
[346642102,1735146646966,-500.0,0.00011545,2]
[346642103,1735146646977,-264.85492915,0.00011545,2]
[346642104,1735146646987,-500.0,0.00011545,2]
[346642105,1735146646999,-683.55,0.00011545,2]
[346642106,1735146647008,-500.0,0.00011545,2]
[346642107,1735146647019,-500.0,0.00011545,2]
[346642108,1735146647029,-500.0,0.00011545,2]
[346642109,1735146647039,-552.66,0.00011545,2]
[346642110,1735146647050,-500.0,0.00011545,2]
[346642111,1735146647060,-500.0,0.00011545,2]
[346642112,1735146647070,-500.0,0.00011545,2]
[346642113,1735146647079,-500.0,0.00011545,2]
[346642114,1735146647088,-931.02,0.00011545,2]
[346642115,1735146647098,-555.98,0.00011545,2]
[346642116,1735146647108,-500.0,0.00011545,2]
[346642117,1735146647118,-638.72,0.00011545,2]
[346642118,1735146647128,-500.0,0.00011545,2]
[346642119,1735146647137,-500.0,0.00011545,2]
[346642120,1735146647147,-870.26,0.00011545,2]
[346642121,1735146647157,-500.0,0.00011545,2]
[346642122,1735146647168,-500.0,0.00011545,2]
[346642123,1735146647178,-500.0,0.00011545,2]
[346642124,1735146647188,-1854.34,0.00011545,2]
[346642125,1735146647198,-500.0,0.00011545,2]
[346642126,1735146647207,-500.0,0.00011545,2]
[346642127,1735146647217,-500.0,0.00011545,2]
[346642128,1735146647226,-500.0,0.00011545,2]
[346642129,1735146647235,-500.0,0.00011545,2]
[346642130,1735146647245,-657.45,0.00011545,2]
[346642131,1735146647255,-500.0,0.00011545,2]
[346642132,1735146647264,-1250.06,0.00011545,2]
[346642133,1735146647274,-500.0,0.00011545,2]
[346642134,1735146647283,-1672.81,0.00011545,2]
[346642135,1735146647292,-4830.95,0.00011545,2]
[346642136,1735146647302,-500.0,0.00011545,2]
[346642137,1735146647311,-500.0,0.00011545,2]
[346642138,1735146647320,-500.0,0.00011545,2]
[346642139,1735146647330,-500.0,0.00011545,2]
[346642140,1735146647339,-500.0,0.00011545,2]
[346642141,1735146647349,-500.0,0.00011545,2]
[346642142,1735146647359,-500.0,0.00011545,2]
[346642143,1735146647369,-500.0,0.00011545,2]
[346642144,1735146647378,-500.0,0.00011545,2]
[346642145,1735146647388,-689.02,0.00011545,2]
[346642146,1735146647398,-500.0,0.00011545,2]
[346642147,1735146647407,-500.0,0.00011545,2]
[346642148,1735146647416,-731.62,0.00011545,2]
[346642149,1735146647426,-711.5,0.00011545,2]
[346642150,1735146647437,-500.0,0.00011545,2]
[346642151,1735146647447,-500.0,0.00011545,2]
[346642152,1735146647457,-551.75,0.00011545,2]
[346642153,1735146647466,-500.0,0.00011545,2]
[346642154,1735146647475,-500.0,0.00011545,2]
[346642155,1735146647485,-2251.05,0.00011545,2]
[346642156,1735146647495,-500.0,0.00011545,2]
[346642157,1735146647504,-3016.77,0.00011545,2]
[346642158,1735146647513,-500.0,0.00011545,2]
[346642159,1735146647522,-500.0,0.00011545,2]
[346642160,1735146647531,-332.5688511,0.00011545,2]
[346642161,1735146647541,-500.0,0.00011545,2]
[346642162,1735146647550,-500.0,0.00011545,2]
[346642163,1735146647560,-1028.51,0.00011545,2]
[346642164,1735146647569,-1592.71,0.00011545,2]
[346642165,1735146647579,-500.0,0.00011545,2]
[346642166,1735146647589,-950.98,0.00011545,2]
[346642167,1735146647598,-500.0,0.00011545,2]
[346642168,1735146647608,-500.0,0.00011545,2]
[346642169,1735146647618,-500.0,0.00011545,2]
[346642170,1735146647627,-500.0,0.00011545,2]
[346642171,1735146647636,-202.6277974,0.00011545,2]
[346642172,1735146647646,-500.0,0.00011545,2]
[346642173,1735146647655,-500.0,0.00011545,2]
[346642174,1735146647665,-679.36,0.00011545,2]
[346642175,1735146647675,-500.0,0.00011545,2]
[346642176,1735146647685,-500.0,0.00011545,2]
[346642177,1735146647694,-509.42,0.00011545,2]
[346642178,1735146647703,-500.0,0.00011545,2]
[346642179,1735146647713,-938.94,0.00011545,2]
[346642180,1735146647722,-500.0,0.00011545,2]
[346642181,1735146647731,-500.0,0.00011545,2]
[346642182,1735146647741,-500.0,0.00011545,2]
[346642183,1735146647750,-500.0,0.00011545,2]
[346642184,1735146647760,-500.0,0.00011545,2]
[346642185,1735146647770,-1000.0,0.000118,2]
[346642186,1735146647779,-500.0,0.00011819,2]
[346642187,1735146647789,-500.0,0.00011819,2]
[346642188,1735146647798,-500.0,0.00011819,2]
[346642189,1735146647808,-500.0,0.00011819,2]
[346642190,1735146647818,-500.0,0.00011819,2]
[346642191,1735146647828,-500.0,0.00011819,2]
[346642192,1735146647837,-630.2178807,0.00011819,2]
[346642193,1735146647847,-500.0,0.00011819,2]
[346642194,1735146647857,-956.92,0.00011819,2]
[346642195,1735146647867,-500.0,0.00011819,2]
[346642196,1735146647877,-1776.69,0.00011819,2]
[346642197,1735146647886,-500.0,0.00011819,2]
[346642198,1735146647896,-500.0,0.00011819,2]
[346642199,1735146647905,-683.55,0.00011819,2]
[346642200,1735146647914,-500.0,0.00011819,2]
[346642201,1735146647924,-483.62413907,0.00011819,2]
[346642202,1735146647935,-500.0,0.00011819,2]
[346642203,1735146647945,-552.66,0.00011819,2]
[346642204,1735146647954,-500.0,0.00011819,2]
[346642205,1735146647964,-500.0,0.00011819,2]
[346642206,1735146647973,-500.0,0.00011819,2]
[346642207,1735146647983,-500.0,0.00011819,2]
[346642208,1735146647993,-931.02,0.00011819,2]
[346642209,1735146648002,-555.98,0.00011819,2]
[346642210,1735146648012,-500.0,0.00011819,2]
[346642211,1735146648025,-638.72,0.00011819,2]
[346642212,1735146648034,-500.0,0.00011819,2]
[346642213,1735146648044,-500.0,0.00011819,2]
[346642214,1735146648054,-870.26,0.00011819,2]
[346642215,1735146648066,-500.0,0.00011819,2]
[346642216,1735146648076,-500.0,0.00011819,2]
[346642217,1735146648085,-500.0,0.00011819,2]
[346642218,1735146648097,-1854.34,0.00011819,2]
[346642219,1735146648107,-500.0,0.00011819,2]
[346642220,1735146648117,-500.0,0.00011819,2]
[346642221,1735146648127,-500.0,0.00011819,2]
[346642222,1735146648137,-500.0,0.00011819,2]
[346642223,1735146648146,-500.0,0.00011819,2]
[346642224,1735146648156,-657.45,0.00011819,2]
[346642225,1735146648166,-500.0,0.00011819,2]
[346642226,1735146648176,-1250.06,0.00011819,2]
[346642227,1735146648187,-500.0,0.00011819,2]
[346642228,1735146648197,-1672.81,0.00011819,2]
[346642229,1735146648207,-4830.95,0.00011819,2]
[346642230,1735146648217,-500.0,0.00011819,2]
[346642231,1735146648227,-500.0,0.00011819,2]
[346642232,1735146648236,-500.0,0.00011819,2]
[346642233,1735146648246,-500.0,0.00011819,2]
[346642234,1735146648256,-500.0,0.00011819,2]
[346642235,1735146648266,-500.0,0.00011819,2]
[346642236,1735146648276,-500.0,0.00011819,2]
[346642237,1735146648285,-500.0,0.00011819,2]
[346642238,1735146648295,-500.0,0.00011819,2]
[346642239,1735146648306,-689.02,0.00011819,2]
[346642240,1735146648315,-500.0,0.00011819,2]
[346642241,1735146648325,-500.0,0.00011819,2]
[346642242,1735146648335,-731.62,0.00011819,2]
[346642243,1735146648345,-500.0,0.00011819,2]
[346642244,1735146648355,-711.5,0.00011819,2]
[346642245,1735146648364,-500.0,0.00011819,2]
[346642246,1735146648373,-551.75,0.00011819,2]
[346642247,1735146648383,-500.0,0.00011819,2]
[346642248,1735146648393,-500.0,0.00011819,2]
[346642249,1735146648404,-2251.05,0.00011819,2]
[346642250,1735146648414,-500.0,0.00011819,2]
[346642251,1735146648424,-3016.77,0.00011819,2]
[346642252,1735146648434,-500.0,0.00011819,2]
[346642253,1735146648444,-500.0,0.00011819,2]
[346642254,1735146648454,-500.0,0.00011819,2]
[346642255,1735146648465,-500.0,0.00011819,2]
[346642256,1735146648475,-1028.51,0.00011819,2]
[346642257,1735146648485,-1592.71,0.00011819,2]
[346642258,1735146648495,-500.0,0.00011819,2]
[346642259,1735146648505,-950.98,0.00011819,2]
[346642260,1735146648515,-500.0,0.00011819,2]
[346642261,1735146648524,-500.0,0.00011819,2]
[346642262,1735146648534,-500.0,0.00011819,2]
[346642263,1735146648544,-500.0,0.00011819,2]
[346642264,1735146648554,-500.0,0.00011819,2]
[346642265,1735146648564,-500.0,0.00011819,2]
[346642266,1735146648573,-679.36,0.00011819,2]
[346642267,1735146648583,-500.0,0.00011819,2]
[346642268,1735146648592,-500.0,0.00011819,2]
[346642269,1735146648601,-509.42,0.00011819,2]
[346642270,1735146648610,-500.0,0.00011819,2]
[346642271,1735146648620,-938.94,0.00011819,2]
[346642272,1735146648629,-500.0,0.00011819,2]
[346642273,1735146648638,-500.0,0.00011819,2]
[346642274,1735146648647,-500.0,0.00011819,2]
[346642275,1735146648656,-500.0,0.00011819,2]
[346642276,1735146648666,-500.0,0.00011819,2]
[346642277,1735146648675,-500.0,0.0001188,2]
[346642278,1735146648685,-7500.0,0.00011899,2]
[346642279,1735146648694,-3405.4216,0.000119,2]
[346642280,1735146648703,-170.22733316,0.000119,2]
[346642281,1735146648713,-1006.0,0.000119,2]
[346642282,1735146648723,-624.83009526,0.00011957,2]
[346642283,1735146648732,-19996.5340772,0.00011967,2]
[346642284,1735146648748,-4311.534494,0.00011967,2]
[346642285,1735146648766,-27318.72952599,0.00011967,2]
[346642286,1735146648779,-510.00939672,0.00011967,2]
[346642287,1735146648797,-381.74205812,0.00011967,2]
[346642288,1735146648808,-426.4587781,0.00011967,2]
[346642289,1735146648820,-2609.99166987,0.00011967,2]
[346642290,1735146648829,-500.0,0.00011969,2]
[346642291,1735146648839,-646.03,0.00011969,2]
[346642292,1735146648849,-500.0,0.00011969,2]
[346642293,1735146648859,-500.0,0.00011969,2]
[346642294,1735146648868,-500.0,0.00011969,2]
[346642295,1735146648878,-500.0,0.0001197,2]
[346642296,1735146648887,-500.0,0.0001197,2]
[346642297,1735146648897,-500.0,0.00011972,2]
[346642298,1735146648907,-600.0,0.00011972,2]
[346642299,1735146648916,-1700.0,0.00011972,2]
[346642300,1735146648926,-35607.4411733,0.00011997,2]
[346642301,1735146648936,-5509.07377097,0.00011999,2]
[346642302,1735146648945,-335.43256935,0.00012,4]
[346642303,1735146648962,-660.51501,0.00012,4]
[346642304,1735147516762,2758.36780588,0.00025019,120]
[346642305,1735147531261,2324.64674866,0.00025019,120]
[346642306,1735147543565,1010.25260954,0.00025019,120]
[346642307,1735147566569,208.04854909,0.00025019,120]
[346642308,1735147579363,311.41049046,0.00025019,120]
[346642313,1735147642196,699.64768276,0.00025019,120]
[346642315,1735147646522,3112.59699541,0.00025019,120]
[346642317,1735147662605,2000.0,0.00025019,120]
[346642320,1735147699103,760.89,8.784e-05,2]
[346642321,1735147700576,548.07792828,0.00025019,120]
[346642322,1735147705619,1456.90270202,0.00025019,60]
[346642323,1735147708964,756.0,0.00025019,120]
[346642324,1735147709537,1092.83719733,0.00025019,120]
[346642325,1735147711737,3002.80103729,0.00025019,60]
[346642330,1735147714257,1330.22127534,0.00025019,120]
[346642331,1735147715280,3123.98337768,0.00025019,120]
[346642332,1735147715314,155.15597521,0.00025019,120]
[346642354,1735147831540,-462.61,0.00010137,2]
[346642355,1735147831550,-250.0,0.00010648,2]
[346642356,1735147831560,-373.18,0.00010754,2]
[346642357,1735147831569,-12317.53,0.00010754,2]
[346642358,1735147831579,-1067.31,0.00010814,2]
[346642359,1735147831588,-1000.0,0.0001088,2]
[346642360,1735147831597,-1333.46836612,0.00010897,2]
[346642361,1735147831607,-197.06280231,0.00010897,2]
[346642362,1735147831616,-500.0,0.00010997,2]
[346642363,1735147831626,-500.0,0.00010997,2]
[346642364,1735147831636,-500.0,0.00010997,2]
[346642365,1735147831647,-500.2025569,0.00010997,2]
[346642366,1735147831657,-500.84255623,0.00010997,2]
[346642367,1735147831667,-368.10397229,0.00010997,2]
[346642368,1735147831677,-538.95113097,0.00010997,2]
[346642369,1735147831687,-500.0,0.00010997,2]
[346642370,1735147831696,-268.83459017,0.00010997,2]
[346642371,1735147835017,-231.16540983,0.00010997,2]
[346642372,1735147835029,-500.0,0.00010997,2]
[346642373,1735147835040,-500.0,0.00010997,2]
[346642374,1735147835052,-500.0,0.00010997,2]
[346642375,1735147835064,-500.0,0.00010997,2]
[346642376,1735147835075,-500.0,0.00010997,2]
[346642377,1735147835086,-605.17,0.00010997,2]
[346642378,1735147835098,-500.0,0.00010997,2]
[346642379,1735147835109,-508.7155407,0.00010997,2]
[346642380,1735147835123,-500.0,0.00010997,2]
[346642381,1735147835134,-500.0,0.00010997,2]
[346642382,1735147835146,-500.0,0.00010997,2]
[346642383,1735147835158,-154.33384581,0.00010997,2]
[346642384,1735147835169,-500.0,0.00010997,2]
[346642385,1735147835180,-500.0,0.00010997,2]
[346642386,1735147835189,-500.0,0.00010997,2]
[346642387,1735147835200,-500.0,0.00010997,2]
[346642388,1735147835211,-500.0,0.00010997,2]
[346642389,1735147835220,-500.0,0.00010997,2]
[346642390,1735147835233,-500.0,0.00010997,2]
[346642391,1735147835247,-500.0,0.00010997,2]
[346642392,1735147835260,-119.95764761,0.00010997,2]
[346642393,1735147835281,-295.44814184,0.00010997,2]
[346642394,1735147835293,-84.59421055,0.00010997,2]
[346642395,1735147835304,-500.0,0.00010997,2]
[346642397,1735147835314,-500.0,0.00010997,2]
[346642399,1735147835327,-379.63096291,0.00010997,2]
[346642400,1735147835351,-120.36903709,0.00010997,2]
[346642401,1735147835363,-541.2,0.00010997,2]
[346642403,1735147835374,-500.0,0.00010997,2]
[346642405,1735147835384,-500.0,0.00010997,2]
[346642406,1735147835395,-150.17,0.00011015,2]
[346642409,1735147835408,-760.89,0.00011048,2]
[346642411,1735147835422,-887.22,0.000112,2]
[346642413,1735147835435,-493.74,0.00011214,2]
[346642416,1735147835446,-164.09,0.00011227,2]
[346642418,1735147835457,-500.0,0.00011271,2]
[346642420,1735147835468,-160.38,0.00011271,2]
[346642422,1735147835479,-500.0,0.00011271,2]
[346642424,1735147835489,-500.0,0.00011271,2]
[346642426,1735147835500,-500.0,0.00011271,2]
[346642428,1735147835510,-553.37165039,0.00011271,2]
[346642430,1735147835521,-500.0,0.00011271,2]
[346642432,1735147835532,-432.9592665,0.00011271,2]
[346642434,1735147835543,-227.64,0.00011271,2]
[346642436,1735147835554,-500.0,0.00011271,2]
[346642439,1735147835565,-422.78,0.00011271,2]
[346642441,1735147835577,-354.22,0.00011271,2]
[346642443,1735147835588,-500.0,0.00011271,2]
[346642445,1735147835599,-500.0,0.00011271,2]
[346642447,1735147835611,-1333.46836607,0.00011298,2]
[346642449,1735147835622,-499.92,0.000113,2]
[346642451,1735147835633,-770.7,0.000113,2]
[346642454,1735147835646,-445.278,0.000114,2]
[346642456,1735147835657,-33.01150061,0.00011545,2]
[346642458,1735147835672,-466.98849939,0.00011545,2]
[346642461,1735147835683,-500.0,0.00011545,2]
[346642463,1735147835695,-500.0,0.00011545,2]
[346642465,1735147835707,-500.0,0.00011545,2]
[346642467,1735147835718,-336.8,0.00011545,2]
[346642469,1735147835728,-500.0,0.00011545,2]
[346642471,1735147835739,-500.0,0.00011545,2]
[346642473,1735147835750,-379.36,0.00011545,2]
[346642475,1735147835760,-166.0,0.00011686,2]
[346642477,1735147835771,-166.0,0.00011686,2]
[346642480,1735147835781,-166.0,0.00011686,2]
[346642482,1735147835791,-252.0,0.00011686,2]
[346642484,1735147835802,-172.0,0.00011686,2]
[346642485,1735147835812,-172.0,0.00011686,2]
[346642486,1735147835824,-259.0,0.00011686,2]
[346642487,1735147835834,-200.0,0.00011686,2]
[346642488,1735147835845,-200.0,0.00011686,2]
[346642489,1735147835855,-200.0,0.00011686,2]
[346642490,1735147835866,-200.0,0.00011686,2]
[346642491,1735147835877,-200.0,0.00011686,2]
[346642492,1735147835889,-200.0,0.00011686,2]
[346642493,1735147835900,-200.0,0.00011686,2]
[346642494,1735147835911,-200.0,0.00011686,2]
[346642495,1735147835922,-200.0,0.00011686,2]
[346642496,1735147835932,-200.0,0.00011686,2]
[346642497,1735147835943,-200.0,0.00011686,2]
[346642498,1735147835953,-200.0,0.00011686,2]
[346642499,1735147835964,-200.0,0.00011686,2]
[346642500,1735147835975,-200.0,0.00011686,2]
[346642501,1735147835985,-200.0,0.00011686,2]
[346642502,1735147835996,-200.0,0.00011686,2]
[346642503,1735147836006,-200.0,0.00011686,2]
[346642504,1735147836017,-200.0,0.00011686,2]
[346642505,1735147836027,-200.0,0.00011686,2]
[346642506,1735147836038,-200.0,0.00011686,2]
[346642507,1735147836048,-200.0,0.00011686,2]
[346642508,1735147836058,-200.0,0.00011686,2]
[346642509,1735147836069,-200.0,0.00011686,2]
[346642510,1735147836079,-200.0,0.00011686,2]
[346642511,1735147836090,-209.0,0.00011686,2]
[346642512,1735147836100,-200.0,0.00011689,2]
[346642513,1735147836111,-200.0,0.00011689,2]
[346642514,1735147836122,-200.0,0.00011689,2]
[346642515,1735147836132,-200.0,0.00011689,2]
[346642516,1735147836143,-60.30815993,0.00011689,2]
[346642517,1735147836157,-139.69184007,0.00011689,2]
[346642518,1735147836168,-453.14222059,0.00011698,2]
[346642519,1735147836196,-880.32614548,0.00011698,2]
[346642520,1735147836207,-1000.0,0.000117,2]
[346642521,1735147836218,-2500.0,0.00011718,2]
[346642522,1735147836228,-5000.0,0.00011718,2]
[346642523,1735147836239,-55555.0,0.00011768,2]
[346642524,1735147836249,-51888.62889572,0.000118,2]
[346642538,1735147837552,-5729.36,0.000118,2]
[346642539,1735147837723,-23528.32223379,0.000118,2]
[346642540,1735147837734,-1000.0,0.000118,2]
[346642541,1735147837744,-500.0,0.00011817,2]
[346642542,1735147837755,-500.0,0.00011817,2]
[346642543,1735147837765,-1480.57,0.00011817,2]
[346642544,1735147837776,-500.0,0.00011817,2]
[346642546,1735147837786,-500.0,0.00011817,2]
[346642548,1735147837796,-1099.59,0.00011817,2]
[346642550,1735147837807,-500.0,0.00011817,2]
[346642552,1735147837817,-892.38,0.00011817,2]
[346642554,1735147837827,-500.0,0.00011817,2]
[346642556,1735147837838,-500.0,0.00011817,2]
[346642559,1735147837848,-807.71,0.00011817,2]
[346642561,1735147837859,-500.0,0.00011817,2]
[346642563,1735147837869,-500.0,0.00011817,2]
[346642565,1735147837879,-500.0,0.00011817,2]
[346642567,1735147837889,-500.0,0.00011817,2]
[346642569,1735147837899,-1394.01,0.00011817,2]
[346642571,1735147837910,-609.68,0.00011817,2]
[346642573,1735147837920,-500.0,0.00011817,2]
[346642575,1735147837931,-558.58,0.00011817,2]
[346642577,1735147837941,-500.0,0.00011817,2]
[346642580,1735147837952,-574.18,0.00011817,2]
[346642582,1735147837962,-1875.87,0.00011817,2]
[346642585,1735147837973,-500.0,0.00011817,2]
[346642588,1735147837983,-500.0,0.00011817,2]
[346642590,1735147837994,-592.92,0.00011817,2]
[346642592,1735147838004,-500.0,0.00011817,2]
[346642594,1735147838014,-500.0,0.00011817,2]
[346642596,1735147838025,-1425.46,0.00011817,2]
[346642599,1735147838036,-500.0,0.00011817,2]
[346642601,1735147838046,-500.0,0.00011817,2]
[346642603,1735147838056,-500.0,0.00011817,2]
[346642605,1735147838067,-500.0,0.00011817,2]
[346642607,1735147838077,-500.0,0.00011817,2]
[346642609,1735147838088,-500.0,0.00011817,2]
[346642611,1735147838098,-500.0,0.00011817,2]
[346642613,1735147838108,-500.0,0.00011817,2]
[346642616,1735147838119,-500.0,0.00011817,2]
[346642618,1735147838130,-500.0,0.00011817,2]
[346642620,1735147838140,-500.0,0.00011817,2]
[346642622,1735147838151,-212.88391238,0.00011817,2]
[346642624,1735147838162,-500.0,0.00011817,2]
[346642626,1735147838173,-500.0,0.00011817,2]
[346642628,1735147838184,-7500.0,0.00011817,2]
[346642630,1735147838195,-500.0,0.00011817,2]
[346642632,1735147838206,-500.0,0.00011817,2]
[346642634,1735147838216,-500.0,0.00011817,2]
[346642637,1735147838227,-500.0,0.00011817,2]
[346642639,1735147838238,-500.0,0.00011817,2]
[346642641,1735147838248,-500.0,0.00011817,2]
[346642667,1735147838259,-500.0,0.00011817,2]
[346642670,1735147838631,-512.45218866,0.00011817,2]
[346642673,1735147838643,-500.0,0.00011817,2]
[346642675,1735147838654,-500.0,0.00011817,2]
[346642677,1735147838663,-500.0,0.00011817,2]
[346642679,1735147838673,-500.0,0.00011817,2]
[346642681,1735147838683,-500.0,0.00011817,2]
[346642683,1735147838692,-502.86235044,0.00011818,2]
[346642685,1735147838702,-500.0,0.00011818,2]
[346642687,1735147838711,-506.8314041,0.00011818,2]
[346642689,1735147838721,-516.32342126,0.00011818,2]
[346642691,1735147838731,-511.19320003,0.00011818,2]
[346642693,1735147838741,-500.0,0.00011818,2]
[346642695,1735147838750,-505.15900378,0.00011818,2]
[346642697,1735147838759,-500.0,0.00011818,2]
[346642699,1735147838769,-500.0,0.00011818,2]
[346642701,1735147838778,-500.0,0.00011818,2]
[346642703,1735147838788,-500.0,0.00011818,2]
[346642705,1735147838797,-500.0,0.00011818,2]
[346642707,1735147838807,-500.0,0.00011818,2]
[346642709,1735147838816,-500.0,0.00011818,2]
[346642711,1735147838827,-500.0,0.00011818,2]
[346642713,1735147838836,-500.0,0.00011818,2]
[346642715,1735147838845,-500.0,0.00011818,2]
[346642717,1735147838855,-504.3416016,0.00011818,2]
[346642719,1735147838864,-500.0,0.00011818,2]
[346642721,1735147838873,-518.08090368,0.00011818,2]
[346642723,1735147838883,-500.0,0.00011818,2]
[346642725,1735147838893,-500.0,0.00011818,2]